[Event "GER-ch Youth-U12 2024"]
[Site "Willingen"]
[Date "2024.05.24"]
[Round "8"]
[White "Schmidt, Jossip"]
[Black "Noll, Raphael"]
[Result "0-1"]
[ECO "C42"]
[WhiteElo "1603"]
[BlackElo "1775"]
[Annotator "NA RC"]
[PlyCount "50"]
[EventDate "2022.06.05"]
[EventType "swiss"]
[EventRounds "9"]
[EventCountry "GER"]
[SourceTitle "playchess.com"]
[Source "ChessBase"]
[SourceQuality "1"]
[TimeControl "40/4500+30:900+30"]

1. e4 {[%emt 0:00:00]} e5 {[%emt 0:00:00]} 2. Nf3 {[%emt 0:00:00]} Nf6 {[%emt 0:00:00]} 3. Nxe5 {[%emt 0:00:00]} d6 {[%emt 0:00:00]} 4. Nf3 {[%emt 0:00:00]} Nxe4 {[%emt 0:00:00]} 5. Nc3 {[%emt 0:00:00]} Nxc3 {[%emt 0:00:00]} 6. dxc3 {[%emt 0:00:00]} Be7 {[%emt 0:00:00]} 7. Be3 {[%emt 0:00:00]} O-O {[%emt 0:00:00]} 8. Qd2 {[%emt 0:00:00]} Be6 {[%emt 0:00:00]} 9. Bd3 {[%emt 0:00:00]} Nd7 {[%emt 0:00:00]} 10. h3 {[%emt 0:01:14]} Re8 {[%emt 0:00:00]} 11. a3 {[%emt 0:00:00]} Ne5 {[%emt 0:06:38]} 12. Nxe5 {[%emt 0:00:00]} dxe5 {[%emt 0:00:07]} 13. O-O-O {[%emt 0:00:00]} f5 {[%emt 0:02:30]} 14. f3 {[%emt 0:00:07]} Qd5 {[%emt 0:03:35]} 15. c4 {[%emt 0:01:31]} Qc6 {[%emt 0:02:59]} 16. Qe2 {[%emt 0:00:53]} e4 {[%emt 0:02:17]} 17. fxe4 {[%emt 0:00:54]} fxe4 {[%emt 0:00:15]} 18. Bf4 {[%emt 0:03:33]} exd3 {[%emt 0:01:53]} 19. Qxd3 {[%emt 0:00:23]} Bxc4 {[%emt 0:06:20]} 20. Qg3 {[%emt 0:00:46]} Qg6 {[%emt 0:06:29]} 21. Qc3 {[%emt 0:02:28]} Qf7 {[%emt 0:02:55]} 22. Be5 {[%emt 0:00:44]} Bg5+ {[%emt 0:03:35]} 23. Kb1 {[%emt 0:00:20]} Rad8 {[%emt 0:01:49]} 24. Bxg7 {[%emt 0:01:49]} Rxd1+ {[%emt 0:03:06]} 25. Rxd1 {[%emt 0:00:09]} Be2 {[%emt 0:05:48]} 0-1

[Event "GER-ch Youth-U12 2024"]
[Site "Willingen"]
[Date "2024.05.24"]
[Round "8"]
[White "Rinke, Alexander"]
[Black "Doeding, Alexander"]
[Result "1/2-1/2"]
[ECO "B06"]
[WhiteElo "1596"]
[BlackElo "1633"]
[Annotator "NA RC"]
[PlyCount "72"]
[EventDate "2022.06.05"]
[EventType "swiss"]
[EventRounds "9"]
[EventCountry "GER"]
[SourceTitle "playchess.com"]
[Source "ChessBase"]
[SourceQuality "1"]
[TimeControl "40/4500+30:900+30"]

1. e4 {[%emt 0:00:00]} g6 {[%emt 0:00:00]} 2. d4 {[%emt 0:00:00]} Bg7 {[%emt 0:00:00]} 3. Nf3 {[%emt 0:00:00]} d6 {[%emt 0:00:00]} 4. Bb5+ {[%emt 0:00:00]} Nd7 {[%emt 0:00:00]} 5. O-O {[%emt 0:00:00]} a6 {[%emt 0:00:00]} 6. Ba4 {[%emt 0:00:00]} b5 {[%emt 0:00:00]} 7. Bb3 {[%emt 0:00:00]} e6 {[%emt 0:00:00]} 8. Bg5 {[%emt 0:00:42]} Ne7 {[%emt 0:00:00]} 9. c3 {[%emt 0:11:11]} h6 {[%emt 0:00:00]} 10. Bh4 {[%emt 0:00:58]} Bb7 {[%emt 0:00:00]} 11. Re1 {[%emt 0:03:41]} g5 {[%emt 0:00:05]} 12. Bg3 {[%emt 0:00:21]} Ng6 {[%emt 0:02:07]} 13. a4 {[%emt 0:03:08]} bxa4 {[%emt 0:06:40]} 14. Bxa4 {[%emt 0:00:59]} O-O {[%emt 0:00:21]} 15. Nbd2 {[%emt 0:03:35]} Nb6 {[%emt 0:04:53]} 16. Bc2 {[%emt 0:01:29]} g4 {[%emt 0:09:21]} 17. Nh4 {[%emt 0:02:35]} Nxh4 {[%emt 0:00:11]} 18. Qxg4 {[%emt 0:00:07]} Ng6 {[%emt 0:00:24]} 19. h4 {[%emt 0:01:15]} e5 {[%emt 0:06:38]} 20. h5 {[%emt 0:00:32]} Nf4 {[%emt 0:01:57]} 21. Bxf4 {[%emt 0:00:34]} exf4 {[%emt 0:00:16]} 22. Qxf4 {[%emt 0:00:12]} Qg5 {[%emt 0:02:29]} 23. Qxg5 {[%emt 0:01:00]} hxg5 {[%emt 0:00:09]} 24. Re3 {[%emt 0:00:58]} f6 {[%emt 0:02:15]} 25. Rg3 {[%emt 0:01:39]} Kh8 {[%emt 0:03:43]} 26. d5 {[%emt 0:09:10]} Nd7 {[%emt 0:05:26]} 27. Nb3 {[%emt 0:01:45]} Ne5 {[%emt 0:03:51]} 28. Nd4 {[%emt 0:00:40]} Bc8 {[%emt 0:00:59]} 29. b4 {[%emt 0:03:29]} Bd7 {[%emt 0:00:55]} 30. Ba4 {[%emt 0:02:39]} Bxa4 {[%emt 0:04:29]} 31. Rxa4 {[%emt 0:00:12]} Rfc8 {[%emt 0:00:25]} 32. Ne6 {[%emt 0:05:46]} Bh6 {[%emt 0:05:28]} 33. Re3 {[%emt 0:02:52]} Nc4 {[%emt 0:05:13]} 34. Re2 {[%emt 0:06:17]} c6 {[%emt 0:04:29]} 35. dxc6 {[%emt 0:03:30]} Rxc6 {[%emt 0:00:27]} 36. b5 {[%emt 0:00:30]} Rcc8 {[%emt 0:01:30]} 1/2-1/2

[Event "GER-ch Youth-U12 2024"]
[Site "Willingen"]
[Date "2024.05.24"]
[Round "8"]
[White "Moskalenko, Michael"]
[Black "Gao, Chenzhuo"]
[Result "1-0"]
[ECO "E94"]
[WhiteElo "1574"]
[BlackElo "1580"]
[Annotator "NA RC"]
[PlyCount "65"]
[EventDate "2022.06.05"]
[EventType "swiss"]
[EventRounds "9"]
[EventCountry "GER"]
[SourceTitle "playchess.com"]
[Source "ChessBase"]
[SourceQuality "1"]
[TimeControl "40/4500+30:900+30"]

1. d4 {[%emt 0:00:00]} Nf6 {[%emt 0:00:00]} 2. c4 {[%emt 0:00:00]} g6 {[%emt 0:00:00]} 3. Nc3 {[%emt 0:00:00]} Bg7 {[%emt 0:00:00]} 4. e4 {[%emt 0:00:00]} d6 {[%emt 0:00:00]} 5. Nf3 {[%emt 0:00:00]} O-O {[%emt 0:00:00]} 6. Be2 {[%emt 0:00:00]} e5 {[%emt 0:00:00]} 7. O-O {[%emt 0:00:00]} exd4 {[%emt 0:00:00]} 8. Nxd4 {[%emt 0:00:00]} c6 {[%emt 0:00:00]} 9. Be3 {[%emt 0:00:00]} Qe7 {[%emt 0:00:00]} 10. Qc2 {[%emt 0:00:00]} Na6 {[%emt 0:00:00]} 11. f3 {[%emt 0:06:08]} Nc7 {[%emt 0:00:00]} 12. Rad1 {[%emt 0:01:05]} Rd8 {[%emt 0:00:00]} 13. Bg5 {[%emt 0:08:55]} h6 {[%emt 0:00:43]} 14. Bh4 {[%emt 0:04:12]} Ne6 {[%emt 0:08:47]} 15. Nxe6 {[%emt 0:03:56]} Qxe6 {[%emt 0:09:52]} 16. f4 {[%emt 0:14:11]} Re8 {[%emt 0:02:22]} 17. f5 {[%emt 0:11:38]} Qe5 {[%emt 0:00:45]} 18. Bg3 {[%emt 0:00:30]} Qc5+ {[%emt 0:01:25]} 19. Kh1 {[%emt 0:11:38]} g5 {[%emt 0:20:18]} 20. Bxd6 {[%emt 0:01:10]} Qb6 {[%emt 0:04:33]} 21. e5 {[%emt 0:01:15]} Nd7 {[%emt 0:00:15]} 22. f6 {[%emt 0:00:21]} Bf8 {[%emt 0:00:22]} 23. Na4 {[%emt 0:02:18]} Qa6 {[%emt 0:07:53]} 24. c5 {[%emt 0:00:29]} Qa5 {[%emt 0:00:07]} 25. Bc4 {[%emt 0:01:55]} Nxe5 {[%emt 0:00:46]} 26. Bxe5 {[%emt 0:00:07]} Be6 {[%emt 0:00:13]} 27. Bxe6 {[%emt 0:00:27]} Rxe6 {[%emt 0:00:11]} 28. Bc3 {[%emt 0:00:19]} Qc7 {[%emt 0:00:15]} 29. b4 {[%emt 0:01:19]} Rae8 {[%emt 0:00:24]} 30. Rfe1 {[%emt 0:00:42]} Rxe1+ {[%emt 0:02:17]} 31. Rxe1 {[%emt 0:00:06]} Rxe1+ {[%emt 0:01:11]} 32. Bxe1 {[%emt 0:00:05]} Qe5 {[%emt 0:00:34]} 33. Qf2 {[%emt 0:00:58]} 1-0

[Event "GER-ch Youth-U12 2024"]
[Site "Willingen"]
[Date "2024.05.24"]
[Round "8"]
[White "Grabowski, Joshua"]
[Black "Lanert, Theodor"]
[Result "0-1"]
[ECO "B13"]
[WhiteElo "1532"]
[BlackElo "1742"]
[Annotator "NA RC"]
[PlyCount "108"]
[EventDate "2022.06.05"]
[EventType "swiss"]
[EventRounds "9"]
[EventCountry "GER"]
[SourceTitle "playchess.com"]
[Source "ChessBase"]
[SourceQuality "1"]
[TimeControl "40/4500+30:900+30"]

1. d4 {[%emt 0:00:00]} Nf6 {[%emt 0:00:00]} 2. Nc3 {[%emt 0:00:00]} d5 {[%emt 0:00:00]} 3. Bf4 {[%emt 0:00:00]} c5 {[%emt 0:00:00]} 4. e3 {[%emt 0:00:00]} cxd4 {[%emt 0:00:00]} 5. exd4 {[%emt 0:00:16]} a6 {[%emt 0:00:00]} 6. Nf3 {[%emt 0:00:00]} Nc6 {[%emt 0:00:00]} 7. Be2 {[%emt 0:00:00]} e6 {[%emt 0:00:00]} 8. Qd2 {[%emt 0:00:00]} Bb4 {[%emt 0:00:00]} 9. Ne5 {[%emt 0:00:00]} Qb6 {[%emt 0:00:00]} 10. Nxc6 {[%emt 0:00:00]} Qxc6 {[%emt 0:00:00]} 11. Bd3 {[%emt 0:00:00]} Bd7 {[%emt 0:00:00]} 12. a3 {[%emt 0:00:00]} Ba5 {[%emt 0:00:00]} 13. b4 {[%emt 0:00:00]} Bc7 {[%emt 0:00:00]} 14. Bxc7 {[%emt 0:00:42]} Qxc7 {[%emt 0:00:00]} 15. Ne2 {[%emt 0:00:47]} Ke7 {[%emt 0:03:46]} 16. Rc1 {[%emt 0:06:14]} Bb5 {[%emt 0:05:09]} 17. O-O {[%emt 0:01:31]} Rhc8 {[%emt 0:00:43]} 18. f4 {[%emt 0:01:43]} g6 {[%emt 0:01:19]} 19. Ng3 {[%emt 0:05:48]} Qc3 {[%emt 0:01:07]} 20. Qxc3 {[%emt 0:04:59]} Rxc3 {[%emt 0:00:48]} 21. Bxb5 {[%emt 0:00:39]} axb5 {[%emt 0:00:08]} 22. Rfe1 {[%emt 0:00:23]} Kd6 {[%emt 0:02:00]} 23. Ne2 {[%emt 0:00:42]} Rcxa3 {[%emt 0:00:16]} 24. Ng3 {[%emt 0:00:20]} Rc3 {[%emt 0:00:13]} 25. Ne2 {[%emt 0:00:24]} Rc4 {[%emt 0:00:05]} 26. c3 {[%emt 0:00:10]} Ne4 {[%emt 0:00:21]} 27. Red1 {[%emt 0:00:29]} Ra2 {[%emt 0:00:30]} 28. Kf1 {[%emt 0:00:14]} Rxe2 {[%emt 0:01:43]} 29. Kxe2 {[%emt 0:00:14]} Nxc3+ {[%emt 0:00:04]} 30. Kd2 {[%emt 0:00:52]} Nxd1 {[%emt 0:00:07]} 31. Rxc4 {[%emt 0:00:02]} bxc4 {[%emt 0:00:09]} 32. Kxd1 {[%emt 0:00:01]} Kc6 {[%emt 0:00:14]} 33. Kc2 {[%emt 0:00:07]} Kb5 {[%emt 0:00:04]} 34. Kc3 {[%emt 0:00:04]} f5 {[%emt 0:00:06]} 35. h3 {[%emt 0:00:10]} h5 {[%emt 0:00:06]} 36. h4 {[%emt 0:00:04]} Ka4 {[%emt 0:00:05]} 37. g3 {[%emt 0:00:11]} b5 {[%emt 0:00:04]} 38. Kb2 {[%emt 0:00:31]} Kxb4 {[%emt 0:00:04]} 39. Ka2 {[%emt 0:00:10]} c3 {[%emt 0:00:05]} 40. g4 {[%emt 0:00:05]} fxg4 {[%emt 0:00:08]} 41. f5 {[%emt 0:15:09]} gxf5 {[%emt 0:15:05]} 42. Kb1 {[%emt 0:00:08]} g3 {[%emt 0:00:06]} 43. Ka1 {[%emt 0:00:05]} g2 {[%emt 0:00:05]} 44. Ka2 {[%emt 0:00:02]} g1=B {[%emt 0:00:12]} 45. Kb1 {[%emt 0:00:03]} Bxd4 {[%emt 0:00:06]} 46. Kc2 {[%emt 0:00:06]} Kc4 {[%emt 0:00:04]} 47. Kc1 {[%emt 0:00:06]} Bf6 {[%emt 0:00:04]} 48. Kc2 {[%emt 0:00:04]} Bxh4 {[%emt 0:00:04]} 49. Kb1 {[%emt 0:00:03]} Bg5 {[%emt 0:00:08]} 50. Ka1 {[%emt 0:00:07]} h4 {[%emt 0:00:05]} 51. Ka2 {[%emt 0:00:07]} h3 {[%emt 0:00:04]} 52. Ka1 {[%emt 0:00:03]} h2 {[%emt 0:00:04]} 53. Ka2 {[%emt 0:00:01]} h1=Q {[%emt 0:00:15]} 54. Ka3 {[%emt 0:00:07]} Qa1# {[%emt 0:00:34]} 0-1

[Event "GER-ch Youth-U12 2024"]
[Site "Willingen"]
[Date "2024.05.24"]
[Round "8"]
[White "König, Lian"]
[Black "Subocz, Barbara"]
[Result "1/2-1/2"]
[ECO "B25"]
[WhiteElo "1180"]
[BlackElo "1692"]
[Annotator "NA"]
[PlyCount "41"]
[EventDate "2022.06.05"]
[EventType "swiss"]
[EventRounds "9"]
[EventCountry "GER"]
[SourceTitle "playchess.com"]
[Source "ChessBase"]
[SourceQuality "1"]
[TimeControl "40/4500+30:900+30"]

1. e4 {[%emt 0:00:00]} c5 {[%emt 0:00:00]} 2. Nc3 {[%emt 0:00:00]} d6 {[%emt 0:00:00]} 3. d3 {[%emt 0:00:00]} Nc6 {[%emt 0:00:00]} 4. g3 {[%emt 0:00:00]} g6 {[%emt 0:00:00]} 5. Bg2 {[%emt 0:00:00]} Bg7 {[%emt 0:00:00]} 6. f4 {[%emt 0:00:00]} e6 {[%emt 0:00:00]} 7. Nf3 {[%emt 0:00:00]} Nge7 {[%emt 0:00:00]} 8. O-O {[%emt 0:00:00]} O-O {[%emt 0:00:00]} 9. g4 {[%emt 0:00:00]} f5 {[%emt 0:00:00]} 10. g5 {[%emt 0:04:29]} Rb8 {[%emt 0:00:00]} 11. Be3 {[%emt 0:05:30]} Nd4 {[%emt 0:00:00]} 12. Qd2 {[%emt 0:04:10]} Nec6 {[%emt 0:00:00]} 13. Rae1 {[%emt 0:05:53]} e5 {[%emt 0:03:38]} 14. Nd1 {[%emt 0:12:31]} b5 {[%emt 0:03:12]} 15. Nxd4 {[%emt 0:06:27]} Nxd4 {[%emt 0:00:19]} 16. c3 {[%emt 0:01:55]} Ne6 {[%emt 0:02:25]} 17. Kh1 {[%emt 0:09:38]} Qa5 {[%emt 0:04:19]} 18. b3 {[%emt 0:04:40]} Nc7 {[%emt 0:06:27]} 19. c4 {[%emt 0:03:14]} Qxd2 {[%emt 0:00:23]} 20. Bxd2 {[%emt 0:00:07]} bxc4 {[%emt 0:00:15]} 21. dxc4 {[%emt 0:01:16]} 1/2-1/2

[Event "GER-ch Youth-U12 2024"]
[Site "Willingen"]
[Date "2024.05.24"]
[Round "8"]
[White "Schellinger, Florian"]
[Black "Fass, Ben"]
[Result "1-0"]
[ECO "C50"]
[WhiteElo "863"]
[BlackElo "1027"]
[Annotator "NA RC"]
[PlyCount "83"]
[EventDate "2022.06.05"]
[EventType "swiss"]
[EventRounds "9"]
[EventCountry "GER"]
[SourceTitle "playchess.com"]
[Source "ChessBase"]
[SourceQuality "1"]
[TimeControl "40/4500+30:900+30"]

1. e4 {[%emt 0:00:00]} e5 {[%emt 0:00:00]} 2. Nf3 {[%emt 0:00:00]} Nc6 {[%emt 0:00:00]} 3. Bc4 {[%emt 0:00:00]} Bc5 {[%emt 0:00:00]} 4. Nc3 {[%emt 0:00:00]} Nf6 {[%emt 0:00:00]} 5. d3 {[%emt 0:00:00]} d6 {[%emt 0:00:00]} 6. Bb5 {[%emt 0:00:00]} Bd7 {[%emt 0:00:00]} 7. Bg5 {[%emt 0:00:00]} h6 {[%emt 0:00:00]} 8. Bh4 {[%emt 0:00:00]} Qe7 {[%emt 0:00:00]} 9. Nd5 {[%emt 0:00:00]} Qe6 {[%emt 0:00:00]} 10. Nxc7+ {[%emt 0:00:00]} Kd8 {[%emt 0:00:00]} 11. Nxe6+ {[%emt 0:00:00]} fxe6 {[%emt 0:00:00]} 12. O-O {[%emt 0:00:00]} a6 {[%emt 0:00:00]} 13. Ba4 {[%emt 0:00:00]} b5 {[%emt 0:00:00]} 14. Bb3 {[%emt 0:00:00]} a5 {[%emt 0:00:00]} 15. a4 {[%emt 0:00:00]} bxa4 {[%emt 0:00:00]} 16. Bxa4 {[%emt 0:00:00]} Rb8 {[%emt 0:00:00]} 17. Qc1 {[%emt 0:00:00]} g5 {[%emt 0:00:00]} 18. Nxg5 {[%emt 0:00:00]} hxg5 {[%emt 0:00:00]} 19. Qxg5 {[%emt 0:00:00]} Rf8 {[%emt 0:00:00]} 20. Qg7 {[%emt 0:00:00]} Ke8 {[%emt 0:00:00]} 21. Bxf6 {[%emt 0:00:00]} Rf7 {[%emt 0:00:00]} 22. Qg8+ {[%emt 0:00:00]} Rf8 {[%emt 0:00:00]} 23. Qg7 {[%emt 0:00:00]} Rf7 {[%emt 0:00:00]} 24. Qh8+ {[%emt 0:00:00]} Rf8 {[%emt 0:00:00]} 25. Qh6 {[%emt 0:00:00]} Ne7 {[%emt 0:00:52]} 26. Bg7 {[%emt 0:00:00]} Rxb2 {[%emt 0:01:12]} 27. Bxd7+ {[%emt 0:00:00]} Kxd7 {[%emt 0:00:12]} 28. Bxf8 {[%emt 0:00:00]} Rxc2 {[%emt 0:00:36]} 29. Rxa5 {[%emt 0:00:00]} Rc3 {[%emt 0:00:27]} 30. Bxe7 {[%emt 0:00:00]} Kc6 {[%emt 0:00:35]} 31. Qg6 {[%emt 0:00:00]} Rxd3 {[%emt 0:00:37]} 32. Qe8+ {[%emt 0:00:00]} Kb6 {[%emt 0:00:16]} 33. Qb5+ {[%emt 0:00:00]} Kc7 {[%emt 0:00:14]} 34. Qxd3 {[%emt 0:00:00]} Kd7 {[%emt 0:00:23]} 35. Rxc5 {[%emt 0:00:00]} Kxe7 {[%emt 0:00:12]} 36. Rc7+ {[%emt 0:00:00]} Kf6 {[%emt 0:00:14]} 37. Qf3+ {[%emt 0:00:00]} Kg6 {[%emt 0:00:13]} 38. Rf7 {[%emt 0:00:00]} d5 {[%emt 0:00:10]} 39. Qf6+ {[%emt 0:00:00]} Kh5 {[%emt 0:00:12]} 40. Rg7 {[%emt 0:00:00]} dxe4 {[%emt 0:00:27]} 41. g3 {[%emt 0:13:59]} e3 {[%emt 0:15:37]} 42. Qh4# {[%emt 0:00:04]} 1-0

[Event "GER-ch Youth-U12 2024"]
[Site "Willingen"]
[Date "2024.05.25"]
[Round "9"]
[White "Nezhyvenko, Mykhaylo"]
[Black "Marynychenko, Yehor"]
[Result "1-0"]
[ECO "B30"]
[WhiteElo "2075"]
[BlackElo "1896"]
[Annotator "RC"]
[PlyCount "111"]
[EventDate "2022.06.05"]
[EventType "swiss"]
[EventRounds "9"]
[EventCountry "GER"]
[SourceTitle "playchess.com"]
[Source "ChessBase"]
[SourceQuality "1"]
[TimeControl "40/4500+30:900+30"]

1. e4 {[%emt 0:00:00]} c5 {[%emt 0:00:00]} 2. Nf3 {[%emt 0:00:00]} Nc6 {[%emt 0:00:00]} 3. Bb5 {[%emt 0:00:00]} e6 {[%emt 0:00:00]} 4. O-O {[%emt 0:00:00]} Nge7 {[%emt 0:00:00]} 5. c3 {[%emt 0:00:00]} a6 {[%emt 0:00:00]} 6. Ba4 {[%emt 0:00:00]} b5 {[%emt 0:00:00]} 7. Bc2 {[%emt 0:00:00]} Ng6 {[%emt 0:00:00]} 8. d4 {[%emt 0:02:05]} d6 {[%emt 0:00:00]} 9. a4 {[%emt 0:06:03]} Bb7 {[%emt 0:00:00]} 10. axb5 {[%emt 0:00:56]} axb5 {[%emt 0:00:00]} 11. Rxa8 {[%emt 0:01:48]} Qxa8 {[%emt 0:01:13]} 12. Re1 {[%emt 0:01:57]} Be7 {[%emt 0:01:49]} 13. Na3 {[%emt 0:02:23]} b4 {[%emt 0:01:33]} 14. cxb4 {[%emt 0:02:09]} cxb4 {[%emt 0:01:23]} 15. Nc4 {[%emt 0:01:19]} O-O {[%emt 0:01:02]} 16. Bd2 {[%emt 0:04:30]} Ba6 {[%emt 0:13:29]} 17. Bb3 {[%emt 0:05:34]} Bxc4 {[%emt 0:13:12]} 18. Bxc4 {[%emt 0:00:02]} Qa7 {[%emt 0:04:07]} 19. Be3 {[%emt 0:07:52]} Qc7 {[%emt 0:00:26]} 20. Qe2 {[%emt 0:03:56]} Na5 {[%emt 0:03:42]} 21. Bd3 {[%emt 0:02:36]} Rc8 {[%emt 0:02:27]} 22. g3 {[%emt 0:03:06]} Qd7 {[%emt 0:08:14]} 23. Nd2 {[%emt 0:04:30]} d5 {[%emt 0:03:23]} 24. Ra1 {[%emt 0:04:52]} dxe4 {[%emt 0:01:36]} 25. Bxe4 {[%emt 0:01:35]} Nc6 {[%emt 0:02:54]} 26. Nb3 {[%emt 0:01:35]} Nf8 {[%emt 0:09:37]} 27. Rd1 {[%emt 0:01:32]} Qe8 {[%emt 0:02:50]} 28. d5 {[%emt 0:04:20]} exd5 {[%emt 0:00:08]} 29. Bxd5 {[%emt 0:00:02]} Bf6 {[%emt 0:00:22]} 30. Rd2 {[%emt 0:05:52]} Ne7 {[%emt 0:03:53]} 31. Bb7 {[%emt 0:03:38]} Rd8 {[%emt 0:00:59]} 32. Bc5 {[%emt 0:05:44]} Ne6 {[%emt 0:00:42]} 33. Bxb4 {[%emt 0:03:16]} Rxd2 {[%emt 0:00:40]} 34. Qxd2 {[%emt 0:00:55]} Qd8 {[%emt 0:02:34]} 35. Qxd8+ {[%emt 0:00:34]} Nxd8 {[%emt 0:00:09]} 36. Be4 {[%emt 0:00:21]} Ndc6 {[%emt 0:00:48]} 37. Bc3 {[%emt 0:01:27]} Bxc3 {[%emt 0:00:22]} 38. bxc3 {[%emt 0:00:02]} f5 {[%emt 0:00:18]} 39. Bxc6 {[%emt 0:00:58]} Nxc6 {[%emt 0:00:06]} 40. Nd4 {[%emt 0:00:04]} Ne7 {[%emt 0:00:22]} 41. Kf1 {[%emt 0:15:31]} Kf7 {[%emt 0:16:39]} 42. Ke2 {[%emt 0:00:06]} Kf6 {[%emt 0:00:34]} 43. Kd3 {[%emt 0:00:53]} g5 {[%emt 0:01:33]} 44. Kc4 {[%emt 0:01:06]} h5 {[%emt 0:05:18]} 45. Kc5 {[%emt 0:02:14]} Ng6 {[%emt 0:01:49]} 46. c4 {[%emt 0:01:00]} f4 {[%emt 0:00:28]} 47. Kd6 {[%emt 0:01:13]} fxg3 {[%emt 0:00:52]} 48. fxg3 {[%emt 0:00:09]} h4 {[%emt 0:01:06]} 49. c5 {[%emt 0:01:00]} hxg3 {[%emt 0:00:49]} 50. hxg3 {[%emt 0:00:03]} Ne5 {[%emt 0:00:55]} 51. c6 {[%emt 0:00:42]} Nf7+ {[%emt 0:01:02]} 52. Kd5 {[%emt 0:02:23]} Ke7 {[%emt 0:00:00]} 53. Nf5+ {[%emt 0:00:00]} Kd8 {[%emt 0:00:00]} 54. Ke6 {[%emt 0:00:00]} Nh8 {[%emt 0:00:00]} 55. Kf6 {[%emt 0:00:00]} Kc7 {[%emt 0:00:00]} 56. Nd4 {[%emt 0:00:00]} 1-0

[Event "GER-ch Youth-U12 2024"]
[Site "Willingen"]
[Date "2024.05.25"]
[Round "9"]
[White "Tarasenko, Nazar"]
[Black "Meijers, Janis"]
[Result "1-0"]
[ECO "D35"]
[WhiteElo "2061"]
[BlackElo "1787"]
[Annotator "RC"]
[PlyCount "55"]
[EventDate "2022.06.05"]
[EventType "swiss"]
[EventRounds "9"]
[EventCountry "GER"]
[SourceTitle "playchess.com"]
[Source "ChessBase"]
[SourceQuality "1"]
[TimeControl "40/4500+30:900+30"]

1. d4 {[%emt 0:00:00]} d5 {[%emt 0:00:00]} 2. c4 {[%emt 0:00:00]} e6 {[%emt 0:00:00]} 3. Nc3 {[%emt 0:00:00]} Nf6 {[%emt 0:00:00]} 4. cxd5 {[%emt 0:00:00]} exd5 {[%emt 0:00:00]} 5. Bg5 {[%emt 0:00:00]} Be7 {[%emt 0:00:00]} 6. e3 {[%emt 0:00:00]} O-O {[%emt 0:00:00]} 7. Qc2 {[%emt 0:00:00]} Re8 {[%emt 0:00:00]} 8. Bd3 {[%emt 0:00:00]} h6 {[%emt 0:00:00]} 9. Bh4 {[%emt 0:00:00]} c5 {[%emt 0:00:00]} 10. Nf3 {[%emt 0:00:00]} cxd4 {[%emt 0:00:00]} 11. Nxd4 {[%emt 0:00:00]} Nc6 {[%emt 0:00:00]} 12. Nf5 {[%emt 0:07:40]} Bxf5 {[%emt 0:00:00]} 13. Bxf5 {[%emt 0:01:19]} d4 {[%emt 0:00:00]} 14. O-O-O {[%emt 0:04:09]} g5 {[%emt 0:20:47]} 15. Bg3 {[%emt 0:02:10]} Qb6 {[%emt 0:02:21]} 16. exd4 {[%emt 0:10:51]} Nxd4 {[%emt 0:01:22]} 17. Rxd4 {[%emt 0:05:17]} Qxd4 {[%emt 0:01:51]} 18. h4 {[%emt 0:10:06]} Nh5 {[%emt 0:06:55]} 19. Rd1 {[%emt 0:00:52]} Qg7 {[%emt 0:15:45]} 20. Bc7 {[%emt 0:07:06]} gxh4 {[%emt 0:10:11]} 21. Nd5 {[%emt 0:06:06]} Bg5+ {[%emt 0:08:00]} 22. f4 {[%emt 0:05:11]} Be7 {[%emt 0:09:43]} 23. Be5 {[%emt 0:03:00]} f6 {[%emt 0:01:26]} 24. Bc3 {[%emt 0:01:15]} Red8 {[%emt 0:05:24]} 25. Qe4 {[%emt 0:02:25]} Ng3 {[%emt 0:03:38]} 26. Qxe7 {[%emt 0:00:54]} Nxf5 {[%emt 0:00:32]} 27. Nxf6+ {[%emt 0:00:09]} Kh8 {[%emt 0:00:23]} 28. Rxd8+ {[%emt 0:00:07]} 1-0

[Event "GER-ch Youth-U12 2024"]
[Site "Willingen"]
[Date "2024.05.25"]
[Round "9"]
[White "Belin, Anton"]
[Black "Li, Yunqi"]
[Result "1-0"]
[ECO "C05"]
[WhiteElo "1948"]
[BlackElo "1940"]
[Annotator "RC"]
[PlyCount "85"]
[EventDate "2022.06.05"]
[EventType "swiss"]
[EventRounds "9"]
[EventCountry "GER"]
[SourceTitle "playchess.com"]
[Source "ChessBase"]
[SourceQuality "1"]
[TimeControl "40/4500+30:900+30"]

1. e4 {[%emt 0:00:00]} e6 {[%emt 0:00:00]} 2. d4 {[%emt 0:00:00]} d5 {[%emt 0:00:00]} 3. Nd2 {[%emt 0:00:00]} Nf6 {[%emt 0:00:00]} 4. e5 {[%emt 0:00:00]} Nfd7 {[%emt 0:00:00]} 5. f4 {[%emt 0:00:00]} c5 {[%emt 0:00:00]} 6. c3 {[%emt 0:00:00]} Nc6 {[%emt 0:00:00]} 7. Ndf3 {[%emt 0:00:00]} Qb6 {[%emt 0:00:00]} 8. h4 {[%emt 0:00:00]} cxd4 {[%emt 0:00:00]} 9. cxd4 {[%emt 0:00:00]} Bb4+ {[%emt 0:00:00]} 10. Kf2 {[%emt 0:00:00]} f6 {[%emt 0:00:00]} 11. Kg3 {[%emt 0:00:00]} O-O {[%emt 0:03:08]} 12. Bd3 {[%emt 0:00:00]} Be7 {[%emt 0:07:37]} 13. Ne2 {[%emt 0:01:36]} Kh8 {[%emt 0:07:30]} 14. Qb3 {[%emt 0:03:21]} fxe5 {[%emt 0:00:53]} 15. fxe5 {[%emt 0:01:22]} Nb4 {[%emt 0:08:58]} 16. Bb1 {[%emt 0:00:58]} Qb5 {[%emt 0:04:58]} 17. Nf4 {[%emt 0:00:56]} Qc6 {[%emt 0:02:01]} 18. a3 {[%emt 0:00:26]} Na6 {[%emt 0:00:14]} 19. Qd3 {[%emt 0:00:07]} Rf5 {[%emt 0:00:30]} 20. Nxe6 {[%emt 0:01:29]} g6 {[%emt 0:00:22]} 21. Nf4 {[%emt 0:01:49]} Nf8 {[%emt 0:00:09]} 22. Qb3 {[%emt 0:01:19]} Nc7 {[%emt 0:01:02]} 23. Bxf5 {[%emt 0:00:57]} Bxf5 {[%emt 0:00:09]} 24. Be3 {[%emt 0:00:44]} b6 {[%emt 0:00:23]} 25. Rac1 {[%emt 0:00:38]} Qd7 {[%emt 0:00:07]} 26. Rxc7 {[%emt 0:00:48]} Qxc7 {[%emt 0:00:09]} 27. Nxd5 {[%emt 0:00:05]} Qd7 {[%emt 0:00:17]} 28. Nxe7 {[%emt 0:00:05]} Qxe7 {[%emt 0:00:08]} 29. Bg5 {[%emt 0:00:04]} Qe6 {[%emt 0:01:02]} 30. Qxe6 {[%emt 0:01:36]} Nxe6 {[%emt 0:00:33]} 31. d5 {[%emt 0:00:43]} Nc5 {[%emt 0:00:24]} 32. e6 {[%emt 0:00:50]} Kg7 {[%emt 0:00:59]} 33. b4 {[%emt 0:00:48]} Ne4+ {[%emt 0:00:37]} 34. Kf4 {[%emt 0:00:07]} h6 {[%emt 0:00:34]} 35. Be7 {[%emt 0:00:05]} Nf2 {[%emt 0:02:15]} 36. Rf1 {[%emt 0:00:12]} Nd3+ {[%emt 0:00:11]} 37. Ke3 {[%emt 0:00:04]} Nb2 {[%emt 0:00:18]} 38. Nd4 {[%emt 0:01:20]} Nc4+ {[%emt 0:00:51]} 39. Kf4 {[%emt 0:00:19]} Re8 {[%emt 0:00:53]} 40. Nxf5+ {[%emt 0:00:07]} gxf5 {[%emt 0:00:58]} 41. d6 {[%emt 0:15:45]} Nxd6 {[%emt 0:14:58]} 42. Bxd6 {[%emt 0:00:06]} Rxe6 {[%emt 0:00:09]} 43. Be5+ {[%emt 0:00:05]} 1-0